bitfinex/quotes_BTCUSD_20230404
["timestamp","ask_amount","ask_price","bid_price","bid_amount"]
[1680628077350,0.3751,28127.0,28125.0,0.4246398]
[1680628077555,0.00021,28128.0,28125.0,0.4246398]
[1680628077556,0.001632,28128.0,28125.0,0.4246998]
[1680628077798,0.708532,28129.0,28126.0,0.17191179]
[1680628078021,0.00021,28129.0,28126.0,0.17191179]
[1680628078250,0.50837092,28130.0,28126.0,0.17891179]
[1680628078466,0.50858092,28130.0,28126.0,0.17891179]
[1680628078699,0.50858092,28130.0,28126.0,0.17191179]
[1680628078922,0.001,28128.0,28126.0,0.17191179]
[1680628079144,0.50858092,28130.0,28126.0,0.17191179]
[1680628079373,0.08836809,28129.0,28126.0,0.17891179]
[1680628079609,0.08979009,28129.0,28126.0,0.17891179]
[1680628079826,0.09000009,28129.0,28126.0,0.02692557]
[1680628080061,0.50958092,28130.0,28127.0,0.22001967]
[1680628080282,0.001422,28129.0,28125.0,0.12664678]
[1680628080505,0.33183118,28128.0,28126.0,0.007]
[1680628080728,0.33104118,28128.0,28125.0,0.37205287]
[1680628080954,0.00021,28128.0,28127.0,0.001]
[1680628081221,0.001422,28129.0,28126.0,0.14744832]
[1680628081444,0.001422,28129.0,28126.0,0.15444832]
[1680628081445,0.39731394,28128.0,28126.0,0.15444832]
[1680628081680,0.39752394,28128.0,28126.0,0.14744832]
[1680628081896,0.39794594,28128.0,28127.0,0.001]
[1680628082599,0.44996194,28128.0,28127.0,0.001]
[1680628082838,0.001632,28128.0,28127.0,0.001]
[1680628083060,0.09282744,28128.0,28125.0,0.12646678]
[1680628083283,0.09382744,28128.0,28126.0,0.007]
[1680628083504,0.09382744,28128.0,28125.0,0.12646678]
[1680628083505,0.09282744,28128.0,28125.0,0.12646678]
[1680628083741,0.46127235,28128.0,28127.0,0.001]
[1680628083966,0.46148235,28128.0,28125.0,0.12646678]
[1680628084193,0.08394264,28127.0,28126.0,0.001]
[1680628084414,0.08536464,28127.0,28125.0,0.12646678]
[1680628085400,0.50363478,28127.0,28125.0,0.12646678]
[1680628085605,0.46912225,28126.0,28125.0,0.12646678]
[1680628086000,0.84564425,28126.0,28124.0,0.48191684]
[1680628086230,0.84564425,28126.0,28125.0,0.08452086]
[1680628086465,0.376522,28126.0,28125.0,0.21198764]
[1680628086700,0.376522,28126.0,28125.0,0.08564086]
[1680628086918,0.376522,28126.0,28125.0,0.08452086]
[1680628087144,0.382522,28126.0,28125.0,0.08452086]
[1680628087335,0.44875536,28126.0,28125.0,0.08452086]
[1680628087583,0.46175536,28126.0,28125.0,0.08552086]
[1680628091233,0.013,28126.0,28125.0,0.20615293]
[1680628091478,0.013,28126.0,28125.0,0.34111071]
[1680628092346,0.013,28126.0,28125.0,0.33261971]
[1680628092562,0.013,28126.0,28125.0,0.34189371]
[1680628092817,0.013,28126.0,28125.0,0.37266164]
[1680628093040,0.013,28126.0,28125.0,0.5423834]
[1680628093493,0.013,28126.0,28125.0,0.33029637]
[1680628093712,0.013,28126.0,28125.0,0.54107433]
[1680628093930,0.013,28126.0,28125.0,0.76068194]
[1680628094200,0.013,28126.0,28125.0,0.72097033]
[1680628094424,0.013,28126.0,28125.0,0.73496485]
[1680628094871,0.013,28126.0,28125.0,0.52418689]
[1680628095093,0.00021,28129.0,28125.0,0.6178989]
[1680628095317,0.002,28126.0,28125.0,0.6308989]
[1680628095554,0.002,28126.0,28125.0,0.7067989]
[1680628096912,0.002,28126.0,28125.0,0.98652845]
[1680628097160,0.002,28126.0,28125.0,1.39493384]
[1680628097391,0.002,28126.0,28125.0,1.22521771]
[1680628097608,0.002,28126.0,28125.0,0.68412486]
[1680628098056,0.002,28126.0,28125.0,0.83430486]
[1680628098483,0.002,28126.0,28125.0,1.08721612]
[1680628098923,0.002,28126.0,28125.0,0.651982]
[1680628100234,0.002,28126.0,28125.0,0.81949593]
[1680628100506,0.002,28126.0,28125.0,1.02758356]
[1680628100717,0.002,28126.0,28125.0,0.81943593]
[1680628101612,0.002,28126.0,28125.0,0.83146809]
[1680628101805,0.002,28126.0,28125.0,0.651922]
[1680628102922,0.002,28126.0,28125.0,0.83291477]
[1680628103113,0.002,28126.0,28125.0,0.651922]
[1680628103325,0.002,28126.0,28125.0,0.87253545]
[1680628103543,0.002,28126.0,28125.0,0.651922]
[1680628104207,0.002,28126.0,28125.0,1.02130189]
[1680628104425,0.002,28126.0,28125.0,1.02118189]
[1680628105998,0.002,28126.0,28125.0,1.02130189]
[1680628106217,0.002,28126.0,28125.0,0.85663256]
[1680628106977,0.002,28126.0,28125.0,0.84241056]
[1680628108292,0.002,28126.0,28125.0,1.01485563]
[1680628108534,0.002,28126.0,28125.0,1.01491563]
[1680628108776,0.002,28126.0,28125.0,0.66020507]
[1680628109007,0.002,28126.0,28125.0,0.86764512]
[1680628109439,0.03933688,28126.0,28125.0,0.97764048]
[1680628109669,0.002,28126.0,28125.0,0.97758048]
[1680628109881,0.002,28126.0,28125.0,0.76653161]
[1680628110105,0.002,28126.0,28125.0,0.76641161]
[1680628110326,0.002,28126.0,28125.0,0.82616048]
[1680628110551,0.002,28126.0,28125.0,0.61511161]
[1680628111653,0.002,28126.0,28125.0,0.61523161]
[1680628112568,0.002,28126.0,28125.0,0.61529161]
[1680628113896,0.002,28126.0,28125.0,0.61511161]
[1680628114112,0.002,28126.0,28125.0,0.61523161]
[1680628114499,0.002,28126.0,28125.0,0.61511161]
[1680628115668,0.001939,28126.0,28125.0,0.61511161]
[1680628117827,0.001939,28126.0,28125.0,0.65732423]
[1680628119586,0.001939,28126.0,28125.0,0.82619347]
[1680628120445,0.001939,28126.0,28125.0,0.65732423]
[1680628120788,0.001939,28126.0,28125.0,0.82626194]
[1680628121017,0.001939,28126.0,28125.0,0.82620194]
[1680628121453,0.001939,28126.0,28125.0,0.82620539]
[1680628121670,0.001939,28126.0,28125.0,0.65732423]
[1680628124740,0.001939,28126.0,28125.0,0.58122423]
[1680628125622,0.001939,28126.0,28125.0,0.75012021]
[1680628125834,0.001939,28126.0,28125.0,0.58122423]
[1680628126081,0.04525758,28126.0,28125.0,0.58122423]
[1680628126527,0.001939,28126.0,28125.0,0.58122423]
[1680628127180,0.00180274,28126.0,28125.0,0.58122423]
[1680628129155,0.00180274,28126.0,28125.0,0.47122887]
[1680628129383,0.00180274,28126.0,28125.0,0.26018]
[1680628129607,0.00180274,28126.0,28125.0,0.274402]
[1680628129802,0.00180274,28126.0,28125.0,0.38745593]
[1680628130047,0.00180274,28126.0,28125.0,0.74216649]
[1680628130246,0.00180274,28126.0,28125.0,1.22057775]
[1680628130474,0.00180274,28126.0,28125.0,1.07057775]
[1680628131451,0.00180274,28126.0,28125.0,0.81766649]
[1680628131866,0.00180274,28126.0,28125.0,0.54853519]
[1680628132065,0.00180274,28126.0,28125.0,0.54865519]
[1680628132268,0.00180274,28126.0,28125.0,0.197802]
[1680628132859,0.00180274,28126.0,28125.0,0.60071326]
[1680628133256,0.00180274,28126.0,28125.0,0.45071326]
[1680628135099,0.00180274,28126.0,28125.0,0.63484291]
[1680628135316,0.00180274,28126.0,28125.0,0.45071326]
[1680628135520,0.00180274,28126.0,28125.0,0.63794103]
[1680628135863,0.00180274,28126.0,28125.0,0.45071326]
[1680628136932,0.00180274,28126.0,28125.0,0.64504476]
[1680628137346,0.00180274,28126.0,28125.0,0.45071326]
[1680628138443,0.00180274,28126.0,28125.0,0.6386069]
[1680628138885,0.00180274,28126.0,28125.0,0.6243849]
[1680628139344,0.00180274,28126.0,28125.0,0.37147364]
[1680628139570,0.04812981,28126.0,28125.0,0.37165364]
[1680628139780,0.00180274,28126.0,28125.0,0.37159364]
[1680628140032,0.00180274,28126.0,28125.0,0.37147364]
[1680628143961,0.00180274,28126.0,28125.0,0.43649126]
[1680628144394,0.00180274,28126.0,28125.0,0.65137485]
[1680628145339,0.00180274,28126.0,28125.0,0.39846359]
[1680628146211,0.00166643,28126.0,28125.0,0.39846359]
[1680628147090,0.00066643,28126.0,28125.0,0.39846359]
[1680628148852,0.00066643,28126.0,28125.0,0.51508128]
[1680628149070,0.00066643,28126.0,28125.0,0.39846359]
[1680628150082,0.00066643,28126.0,28125.0,0.41268559]
[1680628150285,0.00066643,28126.0,28125.0,0.273702]
[1680628150653,0.00066643,28126.0,28125.0,0.45337785]
[1680628154815,0.00066643,28126.0,28125.0,0.37747785]
[1680628155853,0.00066643,28126.0,28125.0,0.52647785]
[1680628156427,0.00066643,28126.0,28125.0,0.37647785]
[1680628156841,0.00066643,28126.0,28125.0,0.52647785]
[1680628157047,0.00066643,28126.0,28125.0,0.37647785]
[1680628159031,0.00066643,28126.0,28125.0,0.18258]
[1680628161525,0.48740447,28126.0,28125.0,0.18258]
[1680628161749,0.48761447,28126.0,28125.0,0.18258]
[1680628162189,0.48761447,28126.0,28125.0,0.012]
[1680628164685,0.48761447,28126.0,28125.0,0.22342018]
[1680628166284,0.50275653,28126.0,28125.0,0.22346615]
[1680628166506,0.55778253,28126.0,28125.0,0.09658646]
[1680628166725,0.90650608,28126.0,28125.0,0.012]
[1680628167437,0.90583965,28126.0,28125.0,0.005]
[1680628167678,0.90583965,28126.0,28124.0,0.08458646]
[1680628167897,0.59416617,28125.0,28124.0,0.08458646]
[1680628168123,0.59416617,28125.0,28123.0,0.08458646]
[1680628168124,0.60714217,28125.0,28123.0,0.08458646]
[1680628168359,0.50415,28124.0,28123.0,0.08458646]
[1680628168618,0.514282,28124.0,28123.0,0.08458646]
[1680628168839,0.5251,28123.0,28122.0,0.08458646]
[1680628169061,0.605476,28123.0,28122.0,0.08458646]
[1680628169306,0.657629,28123.0,28121.0,0.08458646]
[1680628169527,0.3751,28121.0,28118.0,0.21146615]
[1680628169741,0.451,28119.0,28118.0,0.08458646]
[1680628169964,0.506936,28119.0,28118.0,0.08458646]
[1680628170855,0.521936,28119.0,28117.0,0.08458646]
[1680628171067,0.498429,28118.0,28117.0,0.08458646]
[1680628171314,0.500061,28118.0,28117.0,0.08458646]
[1680628171552,0.55867258,28118.0,28117.0,0.08458646]
[1680628172649,0.55867258,28118.0,28116.0,0.08458646]
[1680628172874,0.076,28117.0,28116.0,0.08458646]
[1680628174074,0.086422,28117.0,28116.0,0.08458646]
[1680628174741,0.086422,28117.0,28115.0,0.08458646]
[1680628174968,0.076,28116.0,28115.0,0.08458646]
[1680628175186,0.076,28116.0,28115.0,0.19418703]
[1680628175626,0.076,28116.0,28115.0,0.32106672]
[1680628175843,0.076,28116.0,28115.0,0.19418703]
[1680628175844,0.078,28116.0,28115.0,0.19418703]
[1680628176061,0.078,28116.0,28115.0,0.23648026]
[1680628176512,0.078,28116.0,28115.0,0.19397715]
[1680628177385,0.16676119,28116.0,28115.0,0.19397715]
[1680628177638,0.078,28116.0,28115.0,0.19397715]
[1680628180264,0.07789025,28116.0,28115.0,0.19397715]
[1680628180689,0.07789025,28116.0,28115.0,0.10960057]
[1680628181346,0.07789025,28116.0,28114.0,0.10545658]
[1680628181593,0.0752,28115.0,28114.0,0.10527658]
[1680628181811,0.0752,28115.0,28114.0,0.10539658]
[1680628184096,0.0762,28115.0,28114.0,0.10527658]
[1680628184323,0.0762,28115.0,28114.0,0.10539658]
[1680628185010,0.001,28115.0,28114.0,0.10539658]
[1680628185679,0.45046283,28116.0,28114.0,0.10539658]
[1680628185924,0.45046283,28116.0,28114.0,0.2269638]
[1680628186147,0.45046283,28116.0,28114.0,0.2270238]
[1680628186374,0.45131,28117.0,28114.0,0.2270238]
[1680628186603,0.4511,28117.0,28114.0,0.2269638]
[1680628187050,0.001,28115.0,28114.0,0.2269638]
[1680628187270,0.4511,28117.0,28114.0,0.2269638]
[1680628187498,0.81566543,28117.0,28114.0,0.2269638]
[1680628187721,0.81566543,28117.0,28115.0,0.18939563]
[1680628187974,0.81566543,28117.0,28114.0,0.10545658]
[1680628188191,0.81708743,28117.0,28114.0,0.10527658]
[1680628188418,0.40329907,28116.0,28114.0,0.10527658]
[1680628188644,0.452522,28115.0,28114.0,0.0209]
[1680628188872,0.505152,28115.0,28114.0,0.0209]
[1680628190462,0.520152,28115.0,28114.0,0.0209]
[1680628190690,0.6165156,28115.0,28114.0,0.0209]
[1680628193487,0.5638856,28115.0,28114.0,0.0209]
[1680628194758,0.6153786,28115.0,28114.0,0.0209]
[1680628195175,1.01548655,28115.0,28114.0,0.0209]
[1680628196454,1.01569655,28115.0,28114.0,0.0209]
[1680628196674,1.02419655,28115.0,28114.0,0.0209]
[1680628199268,1.00919655,28115.0,28114.0,0.0209]
[1680628199496,1.02419655,28115.0,28114.0,0.0209]
[1680628199710,1.00919655,28115.0,28114.0,0.0209]
[1680628199925,1.03619655,28115.0,28114.0,0.0209]
[1680628200148,1.10124517,28115.0,28114.0,0.0209]
[1680628201225,1.40124517,28115.0,28114.0,0.0209]
[1680628201436,1.37424517,28115.0,28114.0,0.0209]
[1680628201647,1.40124517,28115.0,28114.0,0.0209]
[1680628202063,1.37424517,28115.0,28114.0,0.0209]
[1680628202273,1.40124517,28115.0,28114.0,0.0209]
[1680628202898,1.43739554,28115.0,28114.0,0.0209]
[1680628203589,0.97223897,28115.0,28114.0,0.0209]
[1680628204252,0.97223897,28115.0,28114.0,0.020791]
[1680628204467,0.94502897,28115.0,28114.0,0.020791]
[1680628204923,0.97202897,28115.0,28114.0,0.020791]
[1680628205137,0.94502897,28115.0,28114.0,0.020791]
[1680628205776,0.97202897,28115.0,28114.0,0.020791]
[1680628205992,0.94502897,28115.0,28114.0,0.020791]
[1680628206644,0.96283262,28115.0,28114.0,0.020791]
[1680628206854,0.98983262,28115.0,28114.0,0.020791]
[1680628207070,0.99004262,28115.0,28114.0,0.020791]
[1680628207284,0.98983262,28115.0,28114.0,0.020791]
[1680628207713,1.48983262,28115.0,28114.0,1e-06]
[1680628207929,1.48983262,28115.0,28111.0,0.0209]
[1680628208149,0.62828,28112.0,28111.0,0.0209]
[1680628208373,0.62828,28112.0,28110.0,0.01642007]
[1680628208374,0.15,28111.0,28110.0,0.01642007]
[1680628208606,0.964908,28111.0,28110.0,0.01202291]
[1680628209266,0.993366,28111.0,28110.0,0.01202291]
[1680628209473,1.01116965,28111.0,28110.0,0.01202291]
[1680628209757,0.15,28110.0,28102.0,0.00018]
[1680628209988,0.3751,28102.0,28101.0,0.01617535]
[1680628210203,0.95444381,28102.0,28101.0,0.01617535]
[1680628210449,0.821047,28102.0,28101.0,0.01617535]
[1680628210963,0.821257,28102.0,28101.0,0.01617535]
[1680628211165,0.821257,28102.0,28101.0,0.0164286]
[1680628211166,0.9301727,28102.0,28101.0,0.0164286]
[1680628211378,1.35266005,28102.0,28101.0,0.0164286]
[1680628211611,1.37966005,28102.0,28101.0,0.0164286]
[1680628211822,1.37987005,28102.0,28101.0,0.0164286]
[1680628212262,0.842564,28102.0,28101.0,0.0164286]
[1680628212477,0.839718,28102.0,28101.0,0.17101302]
[1680628212930,0.429118,28102.0,28101.0,0.0164286]
[1680628213149,0.779733,28102.0,28101.0,0.0164286]
[1680628213371,0.92330696,28102.0,28101.0,0.0164286]
[1680628213613,1.38069038,28102.0,28101.0,0.0164286]
[1680628213816,1.35390038,28102.0,28101.0,0.0164286]
[1680628214036,1.38090038,28102.0,28101.0,0.0164286]
[1680628214260,1.35390038,28102.0,28101.0,0.0164286]
[1680628214478,1.38940038,28102.0,28101.0,0.0164286]
[1680628215128,1.38919038,28102.0,28101.0,0.0164286]
[1680628215772,0.96428996,28102.0,28101.0,0.0164286]
[1680628215985,1.37823923,28102.0,28101.0,0.0164286]
[1680628216237,0.96428996,28102.0,28101.0,0.0164286]
[1680628217092,1.35421258,28102.0,28101.0,0.0164286]
[1680628217301,1.37184482,28102.0,28101.0,0.0164286]
[1680628217553,1.42418741,28102.0,28101.0,0.0164286]
[1680628217765,0.97218996,28102.0,28101.0,0.0164286]
[1680628217972,1.40905285,28102.0,28101.0,0.0164286]
[1680628218396,1.29268589,28102.0,28101.0,0.0164286]
[1680628220073,1.29289589,28102.0,28101.0,0.0164286]
[1680628220486,1.29268589,28102.0,28101.0,0.0164286]
[1680628223194,1.20899589,28102.0,28101.0,0.0164286]
[1680628223375,1.20330289,28102.0,28101.0,0.0164286]
[1680628223584,0.703733,28102.0,28101.0,0.0164286]
[1680628223788,0.703733,28102.0,28101.0,0.19786085]
[1680628224619,0.78758786,28102.0,28101.0,0.0114286]
[1680628224822,1.17547096,28102.0,28101.0,0.0114286]
[1680628225039,1.0916161,28102.0,28101.0,0.0114286]
[1680628225444,0.755061,28102.0,28101.0,0.0114286]
[1680628225858,0.763561,28102.0,28101.0,0.0114286]
[1680628226067,1.1008475,28102.0,28101.0,0.0114286]
[1680628227506,0.763561,28102.0,28101.0,0.0114286]
[1680628227710,1.23972239,28102.0,28101.0,0.0114286]
[1680628228533,1.25175905,28102.0,28101.0,0.0114286]
[1680628228742,1.27875905,28102.0,28101.0,0.0114286]
[1680628228931,1.25175905,28102.0,28101.0,0.0114286]
[1680628229161,1.27875905,28102.0,28101.0,0.0114286]
[1680628230446,1.36255905,28102.0,28101.0,0.0114286]
[1680628230891,1.17392375,28102.0,28101.0,0.0114286]
[1680628231532,1.13842375,28102.0,28101.0,0.0114286]
[1680628231737,1.16542375,28102.0,28101.0,0.0114286]
[1680628232390,1.13842375,28102.0,28101.0,0.0114286]
[1680628232637,1.16542375,28102.0,28101.0,0.0114286]
[1680628232846,1.17392375,28102.0,28101.0,0.0114286]
[1680628233053,1.29219102,28102.0,28101.0,0.0114286]
[1680628233468,1.26519102,28102.0,28101.0,0.0114286]
[1680628233677,1.29219102,28102.0,28101.0,0.0114286]
[1680628236427,1.30118057,28102.0,28101.0,0.0114286]
[1680628238207,1.30118057,28102.0,28101.0,0.01117535]
[1680628239333,1.30118057,28102.0,28101.0,0.0114286]
[1680628239787,0.77112755,28102.0,28101.0,0.20309386]
[1680628240033,0.453638,28102.0,28101.0,0.20309386]
[1680628240250,0.078538,28102.0,28101.0,0.20327386]
[1680628240502,0.027,28102.0,28101.0,0.20309386]
[1680628240728,0.081896,28102.0,28101.0,0.20309386]
[1680628240953,0.23583029,28102.0,28101.0,0.20321386]
[1680628241179,0.23583029,28102.0,28101.0,0.0116086]
[1680628241399,0.081896,28102.0,28101.0,0.0114286]
[1680628242564,0.456996,28102.0,28101.0,0.0114286]
[1680628244319,0.457206,28102.0,28099.0,0.06823282]
[1680628244543,0.51373417,28101.0,28099.0,0.06823282]
[1680628244777,0.46475217,28101.0,28099.0,0.29602731]
[1680628245000,0.001423,28100.0,28099.0,0.29602731]
[1680628245694,0.45921794,28100.0,28099.0,0.29602731]
[1680628245911,0.45921794,28100.0,28099.0,0.12699969]
[1680628246132,0.83431794,28100.0,28099.0,0.12687969]
[1680628246351,0.85631794,28100.0,28099.0,0.12687969]
[1680628246582,0.77105622,28100.0,28099.0,0.12687969]
[1680628248118,0.82256322,28100.0,28099.0,0.12687969]
[1680628248329,0.77105622,28100.0,28099.0,0.12687969]
[1680628248776,0.82271822,28100.0,28099.0,0.12687969]
[1680628248991,0.77105622,28100.0,28099.0,0.12687969]
[1680628249206,0.84958064,28100.0,28099.0,0.12687969]
[1680628250302,0.84958064,28100.0,28098.0,0.24331082]
[1680628250771,0.84958064,28100.0,28099.0,0.12687969]
[1680628251198,0.82758064,28100.0,28099.0,0.12687969]
[1680628251417,0.84258064,28100.0,28099.0,0.12687969]
[1680628251649,0.82758064,28100.0,28099.0,0.12687969]
[1680628251861,0.84958064,28100.0,28099.0,0.12687969]
[1680628252285,0.84958064,28100.0,28099.0,0.12713298]
[1680628252716,0.84958064,28100.0,28099.0,0.38145346]
[1680628252938,0.84958064,28100.0,28099.0,0.38157346]
[1680628253818,0.84958064,28100.0,28099.0,0.17015328]
[1680628254053,0.84958064,28100.0,28099.0,0.29737811]
[1680628254317,0.84958064,28100.0,28099.0,0.29749811]
[1680628254530,0.84958064,28100.0,28099.0,0.38157346]
[1680628254756,0.84958064,28100.0,28099.0,0.17015328]
[1680628254985,0.84958064,28100.0,28099.0,0.17003328]
[1680628255933,0.90226264,28100.0,28099.0,0.17003328]
[1680628256586,0.84958064,28100.0,28099.0,0.17003328]
[1680628256775,0.89917964,28100.0,28099.0,0.17003328]
[1680628256952,0.84958064,28100.0,28099.0,0.17003328]
[1680628257163,0.84979064,28100.0,28099.0,0.17003328]
[1680628257364,0.84958064,28100.0,28099.0,0.17003328]
[1680628257765,0.90327564,28100.0,28099.0,0.17003328]
[1680628258414,0.84958064,28100.0,28099.0,0.17003328]
[1680628258564,0.3971,28100.0,28099.0,0.21167347]
[1680628258775,0.3971,28100.0,28099.0,0.21173347]
[1680628258992,0.398523,28100.0,28099.0,0.21173347]
[1680628260296,0.3971,28100.0,28099.0,0.21173347]
[1680628260489,0.398523,28100.0,28099.0,0.21173347]
[1680628260735,0.3971,28100.0,28099.0,0.21173347]
[1680628261185,0.398523,28100.0,28099.0,0.21173347]
[1680628262086,0.022,28100.0,28099.0,0.21173347]
[1680628262302,0.022,28100.0,28099.0,0.31140299]
[1680628262533,0.034769,28100.0,28099.0,0.21167347]
[1680628262744,0.034769,28100.0,28099.0,0.38155491]
[1680628262745,0.07254835,28100.0,28099.0,0.38155491]
[1680628262966,0.07254835,28100.0,28099.0,0.17013473]
[1680628262967,0.12572035,28100.0,28099.0,0.17013473]
[1680628263202,0.50082035,28100.0,28099.0,0.17013473]
[1680628263439,0.88648236,28100.0,28099.0,0.17013473]
[1680628264083,0.88669236,28100.0,28099.0,0.29755519]
[1680628264524,0.58533035,28100.0,28099.0,0.08521175]
[1680628264745,0.88533035,28100.0,28099.0,0.00025329]
[1680628265872,0.86333035,28100.0,28099.0,0.00025329]
[1680628266324,0.908134,28100.0,28099.0,0.00025329]
[1680628267197,0.881134,28100.0,28099.0,0.00025329]
[1680628267440,0.908134,28100.0,28099.0,0.00025329]
[1680628267878,2.18910323,28100.0,28099.0,0.00025329]
[1680628271405,1.004502,28099.0,28098.0,0.02127995]
[1680628271618,2.71338434,28099.0,28098.0,0.02127995]
[1680628272483,1.43238849,28099.0,28098.0,0.02127995]
[1680628272947,1.004502,28099.0,28098.0,0.02127995]
[1680628273181,1.48088641,28099.0,28098.0,0.0209]
[1680628273411,1.17588033,28099.0,28098.0,0.0209]
[1680628274999,1.56406233,28099.0,28098.0,0.0209]
[1680628275199,1.17588033,28099.0,28098.0,0.0209]
[1680628276067,1.57625848,28099.0,28098.0,0.0209]
[1680628276271,1.17588033,28099.0,28098.0,0.0209]
[1680628276939,1.15807668,28099.0,28098.0,0.0209]
[1680628277148,1.37114117,28099.0,28098.0,0.0209]
[1680628277357,1.76606835,28099.0,28098.0,0.0209]
[1680628278283,1.76606835,28099.0,28098.0,0.02081869]
[1680628278284,2.65192201,28099.0,28098.0,0.02081869]
[1680628278525,2.79381882,28099.0,28098.0,8.69e-06]
[1680628278744,2.65192201,28099.0,28094.0,0.0209]
[1680628278967,0.63697,28095.0,28094.0,0.0209]
[1680628279183,1.015475,28095.0,28094.0,0.0209]
[1680628279408,1.023975,28095.0,28094.0,0.0209]
[1680628279616,2.3052116,28095.0,28094.0,0.0209]
[1680628280927,2.33223737,28095.0,28094.0,0.0209]
[1680628281134,2.55628576,28095.0,28094.0,0.0209]
[1680628281810,2.58328576,28095.0,28094.0,0.0209]
[1680628282026,2.55628576,28095.0,28094.0,0.0209]
[1680628282237,2.58328576,28095.0,28094.0,0.0209]
[1680628283512,2.55628576,28095.0,28094.0,0.0209]
[1680628283728,2.58328576,28095.0,28094.0,0.0209]
[1680628285470,2.5792365,28095.0,28094.0,0.0209]
[1680628285689,2.4955465,28095.0,28094.0,0.0209]
[1680628286119,2.07036737,28095.0,28094.0,0.0209]
[1680628288301,2.33283737,28095.0,28094.0,0.0209]
[1680628290291,2.35064102,28095.0,28094.0,0.0209]
[1680628290500,2.58857332,28095.0,28094.0,0.0209]
[1680628291946,2.39300967,28095.0,28094.0,0.0209]
[1680628292163,2.39279967,28095.0,28094.0,0.0209]
[1680628292592,2.30829967,28095.0,28094.0,0.0209]
[1680628292802,2.39239967,28095.0,28094.0,0.0209]
[1680628296005,2.39260967,28095.0,28094.0,0.0209]
[1680628297135,2.39260967,28095.0,28094.0,0.02178667]
[1680628298682,2.39239967,28095.0,28094.0,0.01178667]
[1680628299746,2.39239967,28095.0,28094.0,0.00349119]
[1680628299972,2.54697822,28095.0,28094.0,0.00349119]
[1680628300197,2.46287822,28095.0,28094.0,0.00349119]
[1680628300457,2.15426737,28095.0,28094.0,0.00349119]
[1680628300678,2.58335335,28095.0,28094.0,0.00349119]
[1680628301125,2.15426737,28095.0,28094.0,0.00349119]
[1680628301355,2.30512223,28095.0,28094.0,0.00349119]
[1680628301584,2.15426737,28095.0,28094.0,0.00349119]
[1680628302388,2.5443131,28095.0,28094.0,0.00349119]
[1680628302666,2.48923356,28095.0,28094.0,0.00349119]
[1680628302935,2.50703721,28095.0,28094.0,0.00349119]
[1680628303694,2.50703721,28095.0,28089.0,0.42258642]
[1680628303696,2.17228102,28095.0,28089.0,0.32351532]
[1680628303928,0.3751,28093.0,28089.0,0.32351532]
[1680628304154,0.3751,28091.0,28089.0,0.32351532]
[1680628304383,0.3751,28091.0,28088.0,0.31608]
[1680628304384,0.00427,28090.0,28088.0,0.00018]
[1680628304604,0.67937,28090.0,28087.0,0.10855737]
[1680628305267,0.67937,28090.0,28088.0,0.00076036]
[1680628305526,0.70637,28090.0,28088.0,0.00076036]
[1680628305753,0.75056941,28089.0,28088.0,0.00076036]
[1680628305972,0.75199341,28089.0,28088.0,0.00076036]
[1680628306200,1.05199341,28089.0,28088.0,0.00076036]
[1680628307023,1.05220341,28089.0,28088.0,0.00076036]
[1680628307825,1.05199341,28089.0,28088.0,0.00076036]
[1680628308069,1.07899341,28089.0,28088.0,0.00076036]
[1680628309211,1.13478141,28089.0,28088.0,0.00076036]
[1680628309872,1.16957515,28089.0,28088.0,0.00076036]
[1680628310749,1.16957515,28089.0,28088.0,0.00076036]
[1680628312595,1.17807515,28089.0,28088.0,0.00076036]
[1680628314782,1.12228715,28089.0,28088.0,0.00076036]
[1680628315013,1.28731407,28089.0,28088.0,0.00076036]
[1680628316591,1.23539107,28089.0,28088.0,0.00076036]
[1680628316804,1.12228715,28089.0,28088.0,0.00076036]
[1680628318093,0.73831774,28089.0,28088.0,0.00076036]
[1680628318335,0.703524,28089.0,28088.0,0.09665044]
[1680628318553,0.703524,28089.0,28088.0,0.09677044]
[1680628320351,0.703524,28089.0,28088.0,0.17287044]
[1680628320566,0.703524,28089.0,28088.0,0.07704036]
[1680628320778,0.703524,28089.0,28088.0,0.07686036]
[1680628320779,0.81800507,28089.0,28088.0,0.07686036]
[1680628320993,0.703524,28089.0,28088.0,0.07686036]
[1680628321433,0.703524,28089.0,28088.0,0.07692036]
[1680628322550,0.703524,28089.0,28088.0,0.28929928]
[1680628322760,0.703524,28089.0,28088.0,0.28941928]
[1680628322980,0.8189016,28089.0,28088.0,0.28941928]
[1680628323458,0.8189016,28089.0,28088.0,0.16199882]
[1680628323680,0.8189016,28089.0,28088.0,0.16193882]
[1680628323901,0.8189016,28089.0,28088.0,0.28935928]
[1680628324121,1.26060965,28089.0,28088.0,0.08589882]
[1680628324339,1.26910965,28089.0,28088.0,0.08577882]
[1680628324811,1.26910965,28089.0,28088.0,0.12824082]
[1680628325024,1.26910965,28089.0,28088.0,0.12830082]
[1680628325891,2.55050488,28089.0,28088.0,0.08598122]
[1680628326107,2.60485588,28089.0,28088.0,0.08592122]
[1680628326530,2.60485588,28089.0,28088.0,0.21334168]
[1680628326750,2.60485588,28089.0,28088.0,0.08610122]
[1680628326956,2.60485588,28089.0,28088.0,0.08592122]
[1680628329085,2.60485588,28089.0,28088.0,0.00076036]
[1680628330372,2.60485588,28089.0,28088.0,0.08592122]
[1680628330800,2.60485588,28089.0,28088.0,0.00076036]
[1680628331740,2.60485588,28089.0,28088.0,0.08592122]
[1680628331967,2.60485588,28089.0,28088.0,0.00076036]
[1680628333038,2.62265953,28089.0,28088.0,0.00076036]
[1680628333883,2.60485588,28089.0,28088.0,0.00076036]
[1680628338017,2.62286953,28089.0,28088.0,0.00076036]
[1680628338230,2.62265953,28089.0,28088.0,0.00076036]
[1680628340448,2.29182983,28089.0,28088.0,0.00076036]
[1680628340886,2.66969455,28089.0,28088.0,0.00076036]
[1680628341110,2.71989155,28089.0,28088.0,0.00076036]
[1680628341327,2.28767583,28089.0,28088.0,0.00076036]
[1680628341549,2.23747883,28089.0,28088.0,0.00076036]
[1680628342413,2.28788483,28089.0,28088.0,0.00076036]
[1680628342656,2.23747883,28089.0,28088.0,0.00076036]
[1680628344438,2.65615233,28089.0,28088.0,0.00076036]
[1680628344656,2.29111683,28089.0,28088.0,0.00076036]
[1680628344872,2.23747883,28089.0,28088.0,0.00076036]
[1680628345316,2.29141983,28089.0,28088.0,0.00076036]
[1680628345973,2.29131468,28089.0,28088.0,0.00076036]
[1680628346191,0.37499485,28087.0,28086.0,0.10624086]
[1680628346404,0.98573732,28087.0,28086.0,0.10624086]
[1680628347096,0.98573732,28087.0,28086.0,0.10725474]
[1680628347525,1.01273732,28087.0,28086.0,0.10725474]